Workbook

Sheet Budget Planner
G12: Food
G13: Clothing
D14: Salary | G14: Others | K14: Sports
D15: Other Income | G15: Total | H15: =SUM(H12:H14) -> 0 | K15: Entertainment
D16: Total (Cash In) | E16: =SUM(E14:E15) -> 0 | K16: Personal Spending
G17: Utilities | H17: =SUM(H18:H23) -> 0 | K17: Gifts
G18: Rent | K18: Spending Money
G19: Home Insurance | K19: Leisure
G20: Water/Electricity | K20: Others
G21: Telephone/Internet | K21: Total (Lifestyle Expense) | L21: =SUM(L14:L20) -> 0
G22: Groceries
D23: Money I want to save | G23: Others
D24: Total (Savings) | E24: =SUM(E23:E23) -> 0
G25: Transport | H25: =SUM(H26:H31) -> 0
G26: Fuel
G27: Fares
G28: Registration
G29: Car Insurance | K29: Total Amount (Steps 2 to 5)
G30: Servicing/Repairs | K30: Total (Cash Out) | L30: =SUM(E24,E38,H38,L21) -> 0
G31: Others
D32: Home Loan
D33: Personal Loan | G33: Health | H33: =SUM(H34:H36) -> 0
D34: Car Loan | G34: Insurance
D35: Phone Plan | G35: Medical bills
D36: Credit Cards | G36: Others
D37: Others
D38: Total (Repayments) | E38: =SUM(E32:E37) -> 0 | G38: Total (Living Expense) | H38: =SUM(H33,H25,H17,H15) -> 0 | K38: Total (Ending Cash) | L38: =E16-L30 -> 0
J41: Plan ahed and control your spendings
J42: Things to consider:
J43: TRUE | K43: Do not spend more than you earn
J44: TRUE | K44: Take control
J45: TRUE | K45: Pay yourself first
J46: TRUE | K46: Make it a habit to save
J47: TRUE | K47: Protect your income and assets
C48: My Financial Goals | J48: TRUE | K48: Develop healthy spending habits
J49: TRUE | K49: plan your budget
J50: TRUE | K50: Use credit wisely
J51: TRUE | K51: Shop around for value
J52: TRUE | K52: Need or want?

Sheet Leak_Factor (hidden)
U6: Amount in AED
U7: Day | V7: Month | W7: 1 Year | X7: 5 Year
U8: 2 | V8: =U8*30 -> 60 | W8: =V8*12 -> 720 | X8: =W8*5 -> 3600
U9: 5 | V9: =U9*30 -> 150 | W9: =V9*12 -> 1800 | X9: =W9*5 -> 9000
U10: 10 | V10: =U10*30 -> 300 | W10: =V10*12 -> 3600 | X10: =W10*5 -> 18000
U11: 15 | V11: =U11*30 -> 450 | W11: =V11*12 -> 5400 | X11: =W11*5 -> 27000
U12: 20 | V12: =U12*30 -> 600 | W12: =V12*12 -> 7200 | X12: =W12*5 -> 36000
